[Event "*** Titled Tuesday Blitz"]
[Site "Chess.com"]
[Date "2019.03.05"]
[Round "4"]
[White "LLRChess"]
[Black "Tiqr777"]
[Result "1-0"]
[WhiteElo "2322"]
[BlackElo "2481"]
[TimeControl "180+2"]
[EndTime "13:58:03 PST"]
[Termination "LLRChess won by resignation"]

1. f4 {[%clk 0:03:01.9]} 1... g6 {[%clk 0:03:00.1]} 2. Nf3 {[%clk 0:03:03.3]}
2... Bg7 {[%clk 0:02:59.5]} 3. g3 {[%clk 0:03:04.7]} 3... d5 {[%clk 0:02:57.9]}
4. Bg2 {[%clk 0:03:06.3]} 4... c5 {[%clk 0:02:59.4]} 5. O-O {[%clk 0:03:07.8]}
5... Nc6 {[%clk 0:03:00.6]} 6. d3 {[%clk 0:03:09.3]} 6... Nf6 {[%clk 0:03:01.5]}
7. Nc3 {[%clk 0:03:10.6]} 7... d4 {[%clk 0:03:01.1]} 8. Na4 {[%clk 0:03:10.7]}
8... Nd7 {[%clk 0:02:59.4]} 9. Ng5 {[%clk 0:03:11.2]} 9... O-O {[%clk 0:02:50]}
10. Ne4 {[%clk 0:03:11.1]} 10... Qa5 {[%clk 0:02:29.2]} 11. c4 {[%clk
0:03:11.6]} 11... dxc3 {[%clk 0:02:30.4]} 12. Naxc3 {[%clk 0:03:03]} 12... Nf6
{[%clk 0:02:14.1]} 13. Nxf6+ {[%clk 0:02:59.8]} 13... Bxf6 {[%clk 0:02:09.3]}
14. Nd5 {[%clk 0:02:59.7]} 14... Bg7 {[%clk 0:02:10.6]} 15. Bd2 {[%clk
0:02:58.9]} 15... Qd8 {[%clk 0:02:11.4]} 16. Bc3 {[%clk 0:02:59.7]} 16... e6
{[%clk 0:02:08.8]} 17. Bxg7 {[%clk 0:02:54.2]} 17... Kxg7 {[%clk 0:02:10.2]} 18.
Nc3 {[%clk 0:02:54.4]} 18... Bd7 {[%clk 0:02:05.1]} 19. Rc1 {[%clk 0:02:51.2]}
19... Rc8 {[%clk 0:01:59.5]} 20. Qd2 {[%clk 0:02:51.2]} 20... f5 {[%clk
0:01:56.3]} 21. Nb5 {[%clk 0:02:33.2]} 21... Qf6 {[%clk 0:01:46.8]} 22. e3
{[%clk 0:02:12.9]} 22... b6 {[%clk 0:01:31.7]} 23. Nd6 {[%clk 0:01:54.5]} 23...
Rc7 {[%clk 0:01:24.6]} 24. Nc4 {[%clk 0:01:55.3]} 24... Rd8 {[%clk 0:01:23.7]}
25. Bxc6 {[%clk 0:01:52.6]} 25... Bxc6 {[%clk 0:01:24.7]} 26. Ne5 {[%clk
0:01:53.8]} 26... Ba8 {[%clk 0:01:23.8]} 27. b4 {[%clk 0:01:52.5]} 27... Qe7
{[%clk 0:01:19.5]} 28. Qc3 {[%clk 0:01:51.7]} 28... Kg8 {[%clk 0:01:20.7]} 29.
Rf2 {[%clk 0:01:34.2]} 29... Rdc8 {[%clk 0:01:17.1]} 30. Rfc2 {[%clk 0:01:34.8]}
30... Qd6 {[%clk 0:01:15.2]} 31. Qc4 {[%clk 0:01:15]} 31... Bd5 {[%clk
0:01:03.6]} 32. Qb5 {[%clk 0:01:12.5]} 32... Ba8 {[%clk 0:00:50.1]} 33. Qc4
{[%clk 0:01:05.6]} 33... Bd5 {[%clk 0:00:50.8]} 34. Qb5 {[%clk 0:01:06.3]} 34...
Bb7 {[%clk 0:00:47.6]} 35. Qc4 {[%clk 0:01:06.8]} 35... a6 {[%clk 0:00:45.1]}
36. d4 {[%clk 0:00:57.6]} 36... Qe7 {[%clk 0:00:20.4]} 37. bxc5 {[%clk
0:00:56.1]} 37... bxc5 {[%clk 0:00:22.1]} 38. dxc5 {[%clk 0:00:56.7]} 38... Bd5
{[%clk 0:00:23.7]} 39. Qb4 {[%clk 0:00:52.9]} 39... Be4 {[%clk 0:00:20.1]} 40.
Rc3 {[%clk 0:00:39.7]} 40... Rb7 {[%clk 0:00:21.1]} 41. Qd4 {[%clk 0:00:36.3]}
41... Rb2 {[%clk 0:00:21]} 42. Ng4 {[%clk 0:00:31.4]} 42... Rg2+ {[%clk
0:00:19.9]} 43. Kf1 {[%clk 0:00:31.4]} 43... fxg4 {[%clk 0:00:20.8]} 44. Qxe4
{[%clk 0:00:31.9]} 44... Rxh2 {[%clk 0:00:22.3]} 45. c6 {[%clk 0:00:30.5]} 45...
Qd6 {[%clk 0:00:19.3]} 46. Rd3 {[%clk 0:00:29.4]} 46... Qe7 {[%clk 0:00:16.7]}
47. c7 {[%clk 0:00:23.9]} 47... Qf6 {[%clk 0:00:14.4]} 48. Qb7 {[%clk
0:00:18.3]} 48... Qb2 {[%clk 0:00:08.5]} 49. Qxb2 {[%clk 0:00:16.2]} 1-0

[Event "*** Titled Tuesday Blitz"]
[Site "Chess.com"]
[Date "2019.03.05"]
[Round "4"]
[White "DrRiebert"]
[Black "chenrip"]
[Result "1-0"]
[WhiteElo "2440"]
[BlackElo "2316"]
[TimeControl "180+2"]
[EndTime "13:58:09 PST"]
[Termination "DrRiebert won by resignation"]

1. e4 {[%clk 0:03:01.9]} 1... e6 {[%clk 0:03:00.7]} 2. d4 {[%clk 0:03:02.8]}
2... d5 {[%clk 0:03:01.8]} 3. Nc3 {[%clk 0:03:04.4]} 3... Bb4 {[%clk 0:03:02]}
4. e5 {[%clk 0:03:05.2]} 4... c5 {[%clk 0:03:02.9]} 5. a3 {[%clk 0:03:06.6]}
5... Bxc3+ {[%clk 0:03:04.3]} 6. bxc3 {[%clk 0:03:08.5]} 6... Ne7 {[%clk
0:03:05.6]} 7. Qg4 {[%clk 0:03:09.8]} 7... Kf8 {[%clk 0:03:06.7]} 8. a4 {[%clk
0:02:58.3]} 8... Qa5 {[%clk 0:03:05.7]} 9. Bd2 {[%clk 0:02:54.7]} 9... c4 {[%clk
0:03:02.4]} 10. Nh3 {[%clk 0:02:49.7]} 10... b5 {[%clk 0:03:00.9]} 11. Qf3
{[%clk 0:02:26.5]} 11... Nbc6 {[%clk 0:02:58.4]} 12. Ng5 {[%clk 0:01:54.6]}
12... Nd8 {[%clk 0:02:58.9]} 13. Be2 {[%clk 0:01:48.4]} 13... h6 {[%clk
0:02:58.2]} 14. Nh3 {[%clk 0:01:49.1]} 14... bxa4 {[%clk 0:02:54.2]} 15. O-O
{[%clk 0:01:44.6]} 15... Rb8 {[%clk 0:02:54.6]} 16. Bc1 {[%clk 0:01:43.5]} 16...
Kg8 {[%clk 0:02:39.9]} 17. Ba3 {[%clk 0:01:39.4]} 17... Nf5 {[%clk 0:02:39.6]}
18. Bb4 {[%clk 0:01:32.8]} 18... Qb5 {[%clk 0:02:39.7]} 19. Bc5 {[%clk
0:01:26.7]} 19... a5 {[%clk 0:02:30.8]} 20. Nf4 {[%clk 0:01:22.9]} 20... Bd7
{[%clk 0:02:29.2]} 21. Nh5 {[%clk 0:01:23.1]} 21... Nb7 {[%clk 0:01:58.1]} 22.
Ba3 {[%clk 0:01:23.6]} 22... Nd8 {[%clk 0:01:50.1]} 23. g4 {[%clk 0:01:23.7]}
23... Nh4 {[%clk 0:01:50.6]} 24. Qg3 {[%clk 0:01:13.7]} 24... Ng6 {[%clk
0:01:50.8]} 25. f4 {[%clk 0:01:15.2]} 25... Nc6 {[%clk 0:01:42.1]} 26. f5 {[%clk
0:01:14.3]} 26... Nf8 {[%clk 0:01:39.3]} 27. g5 {[%clk 0:01:06.6]} 27... exf5
{[%clk 0:01:36.8]} 28. gxh6 {[%clk 0:01:06.1]} 28... Ng6 {[%clk 0:01:33.8]} 29.
hxg7 {[%clk 0:01:02.9]} 29... Rxh5 {[%clk 0:01:27.2]} 30. Bxh5 {[%clk
0:01:02.8]} 30... Kxg7 {[%clk 0:01:28.2]} 31. Qg5 {[%clk 0:00:55.2]} 31... Rg8
{[%clk 0:00:59.1]} 32. Rab1 {[%clk 0:00:45.2]} 32... Qa6 {[%clk 0:00:58.5]} 33.
Kh1 {[%clk 0:00:44.3]} 33... Nxe5 {[%clk 0:00:57]} 34. dxe5 {[%clk 0:00:39.6]}
34... d4 {[%clk 0:00:58.1]} 35. Bf3 {[%clk 0:00:29.4]} 35... d3 {[%clk
0:00:48.2]} 36. Bd6 {[%clk 0:00:17.8]} 36... dxc2 {[%clk 0:00:41.5]} 37. Rbc1
{[%clk 0:00:17.2]} 37... Rh8 {[%clk 0:00:30.7]} 38. Rxc2 {[%clk 0:00:15.3]}
38... Bc6 {[%clk 0:00:27.4]} 39. Qxf5 {[%clk 0:00:13.9]} 39... Qb7 {[%clk
0:00:20.8]} 40. Qf6+ {[%clk 0:00:13.5]} 40... Kg8 {[%clk 0:00:21.5]} 41. Rg2
{[%clk 0:00:13.2]} 41... Rh6 {[%clk 0:00:19.8]} 42. Bxc6 {[%clk 0:00:08.1]}
42... Qxc6 {[%clk 0:00:19]} 43. Qxf7+ {[%clk 0:00:09.2]} 43... Kh8 {[%clk
0:00:20.9]} 44. Qf6+ {[%clk 0:00:10.3]} 44... Kh7 {[%clk 0:00:21.7]} 45. Qf7+
{[%clk 0:00:11.3]} 45... Kh8 {[%clk 0:00:23.1]} 46. Qf6+ {[%clk 0:00:11.9]}
46... Kh7 {[%clk 0:00:24.2]} 47. Qf3 {[%clk 0:00:13.8]} 47... Qxf3 {[%clk
0:00:20.8]} 48. Rxf3 {[%clk 0:00:15.7]} 48... Nh4 {[%clk 0:00:22.3]} 49. Rf7+
{[%clk 0:00:16.2]} 49... Kh8 {[%clk 0:00:23.5]} 50. Rf8+ {[%clk 0:00:16]} 50...
Kh7 {[%clk 0:00:24.1]} 51. Rf7+ {[%clk 0:00:16.5]} 51... Kh8 {[%clk 0:00:25.4]}
52. Rg4 {[%clk 0:00:17.5]} 52... a3 {[%clk 0:00:25.5]} 53. Bxa3 {[%clk
0:00:17.8]} 53... a4 {[%clk 0:00:26.6]} 54. e6 {[%clk 0:00:19]} 54... Ng6 {[%clk
0:00:21.2]} 55. Rxg6 {[%clk 0:00:17.5]} 55... Rxh2+ {[%clk 0:00:21.2]} 56. Kg1
{[%clk 0:00:16.2]} 56... Rg2+ {[%clk 0:00:20.2]} 57. Kf1 {[%clk 0:00:16.3]}
57... Rg1+ {[%clk 0:00:21.5]} 58. Kf2 {[%clk 0:00:17.2]} 58... Rf1+ {[%clk
0:00:21.6]} 59. Ke3 {[%clk 0:00:18.6]} 59... Re1+ {[%clk 0:00:22.1]} 60. Kd4
{[%clk 0:00:20.1]} 60... Re4+ {[%clk 0:00:23.3]} 61. Kc5 {[%clk 0:00:21.3]}
61... Re5+ {[%clk 0:00:24.6]} 62. Kd6 {[%clk 0:00:22.6]} 62... Rd5+ {[%clk
0:00:25.7]} 63. Ke7 {[%clk 0:00:23.8]} 63... Rd7+ {[%clk 0:00:24.6]} 64. Kf6
{[%clk 0:00:25.1]} 64... Rxf7+ {[%clk 0:00:25.8]} 65. exf7 {[%clk 0:00:25.6]}
65... Kh7 {[%clk 0:00:27.2]} 66. Rg7+ {[%clk 0:00:26.1]} 66... Kh6 {[%clk
0:00:28.3]} 1-0

[Event "*** Titled Tuesday Blitz"]
[Site "Chess.com"]
[Date "2019.03.05"]
[Round "4"]
[White "PlotnikovPavel"]
[Black "Vugar_Manafov"]
[Result "0-1"]
[WhiteElo "2367"]
[BlackElo "2410"]
[TimeControl "180+2"]
[EndTime "13:58:15 PST"]
[Termination "Vugar_Manafov won by resignation"]

1. d4 {[%clk 0:03:01.9]} 1... Nf6 {[%clk 0:02:59.8]} 2. Nf3 {[%clk 0:03:02.7]}
2... d5 {[%clk 0:02:59.8]} 3. c4 {[%clk 0:03:03.2]} 3... e6 {[%clk 0:03:00.5]}
4. Nc3 {[%clk 0:03:03.6]} 4... Bb4 {[%clk 0:02:58.2]} 5. Bg5 {[%clk 0:03:01.8]}
5... O-O {[%clk 0:02:57.5]} 6. e3 {[%clk 0:03:02.2]} 6... Nbd7 {[%clk
0:02:56.9]} 7. cxd5 {[%clk 0:03:00.1]} 7... exd5 {[%clk 0:02:56.8]} 8. Bd3
{[%clk 0:03:00.4]} 8... c6 {[%clk 0:02:57.7]} 9. O-O {[%clk 0:03:00.5]} 9... Re8
{[%clk 0:02:56.9]} 10. a3 {[%clk 0:02:58.6]} 10... Be7 {[%clk 0:02:53.7]} 11. b4
{[%clk 0:02:58.7]} 11... Ne4 {[%clk 0:02:48.8]} 12. Bxe7 {[%clk 0:02:50.8]}
12... Qxe7 {[%clk 0:02:50.7]} 13. Qc2 {[%clk 0:02:46.7]} 13... Ndf6 {[%clk
0:02:06.5]} 14. Ne5 {[%clk 0:02:43]} 14... Nxc3 {[%clk 0:02:03.3]} 15. Qxc3
{[%clk 0:02:43.6]} 15... Ne4 {[%clk 0:02:01.2]} 16. Bxe4 {[%clk 0:02:29.8]}
16... dxe4 {[%clk 0:02:03.1]} 17. Qc5 {[%clk 0:02:04.7]} 17... f6 {[%clk
0:01:56]} 18. Qxe7 {[%clk 0:01:59.8]} 18... Rxe7 {[%clk 0:01:57.9]} 19. Nc4
{[%clk 0:01:59]} 19... Be6 {[%clk 0:01:54.8]} 20. Rfc1 {[%clk 0:01:59.9]} 20...
Bd5 {[%clk 0:01:48.9]} 21. Na5 {[%clk 0:01:59.2]} 21... h5 {[%clk 0:01:46.4]}
22. Rc3 {[%clk 0:01:58]} 22... Rd8 {[%clk 0:01:39.9]} 23. Rac1 {[%clk
0:01:53.3]} 23... h4 {[%clk 0:01:32.3]} 24. a4 {[%clk 0:01:48.6]} 24... a6
{[%clk 0:01:26.4]} 25. Nb3 {[%clk 0:01:42.8]} 25... Bxb3 {[%clk 0:01:20.9]} 26.
Rxb3 {[%clk 0:01:43.5]} 26... Rd5 {[%clk 0:01:22.3]} 27. Rc5 {[%clk 0:01:36]}
27... Red7 {[%clk 0:01:21.8]} 28. Kf1 {[%clk 0:01:34]} 28... Kf7 {[%clk
0:01:19.9]} 29. Ke2 {[%clk 0:01:33.3]} 29... Ke6 {[%clk 0:01:20.9]} 30. f3
{[%clk 0:01:24.9]} 30... f5 {[%clk 0:01:12]} 31. Rb1 {[%clk 0:01:19.1]} 31... g6
{[%clk 0:01:02.8]} 32. Rf1 {[%clk 0:01:15.4]} 32... Rf7 {[%clk 0:00:48.1]} 33.
Rxd5 {[%clk 0:01:01.6]} 33... cxd5 {[%clk 0:00:30.1]} 34. Rc1 {[%clk 0:01:02.6]}
34... Kd6 {[%clk 0:00:27.4]} 35. Rc8 {[%clk 0:00:51.1]} 35... Rc7 {[%clk
0:00:26.6]} 36. Rxc7 {[%clk 0:00:45.7]} 36... Kxc7 {[%clk 0:00:28.5]} 37. Kf2
{[%clk 0:00:39.7]} 37... Kd6 {[%clk 0:00:26.5]} 38. g3 {[%clk 0:00:38.9]} 38...
hxg3+ {[%clk 0:00:21.5]} 39. Kxg3 {[%clk 0:00:31.8]} 39... exf3 {[%clk
0:00:22.5]} 40. Kxf3 {[%clk 0:00:32.3]} 40... g5 {[%clk 0:00:22.6]} 41. Kg3
{[%clk 0:00:24.9]} 41... Ke6 {[%clk 0:00:18.7]} 42. h4 {[%clk 0:00:20.2]} 42...
g4 {[%clk 0:00:19.4]} 43. Kf4 {[%clk 0:00:21]} 43... Kf6 {[%clk 0:00:17.3]} 44.
b5 {[%clk 0:00:17.7]} 44... axb5 {[%clk 0:00:07.4]} 45. axb5 {[%clk 0:00:18.7]}
45... b6 {[%clk 0:00:08.5]} 46. Kg3 {[%clk 0:00:17.2]} 46... Kg6 {[%clk
0:00:09.7]} 47. Kg2 {[%clk 0:00:17.8]} 47... Kh5 {[%clk 0:00:10.9]} 48. Kg3
{[%clk 0:00:19]} 48... Kg6 {[%clk 0:00:12.2]} 49. Kg2 {[%clk 0:00:20.2]} 49...
Kh6 {[%clk 0:00:13.6]} 50. Kh2 {[%clk 0:00:21.1]} 50... Kg7 {[%clk 0:00:14.8]}
51. Kg3 {[%clk 0:00:21.5]} 51... Kf6 {[%clk 0:00:16.2]} 52. Kg2 {[%clk 0:00:22]}
52... Ke6 {[%clk 0:00:17.4]} 53. Kg3 {[%clk 0:00:23]} 53... Kd7 {[%clk
0:00:14.5]} 54. Kf4 {[%clk 0:00:22.1]} 54... Ke7 {[%clk 0:00:15.9]} 55. Kg3
{[%clk 0:00:23.1]} 55... Ke6 {[%clk 0:00:17.1]} 56. Kf4 {[%clk 0:00:23.4]} 56...
Kf7 {[%clk 0:00:18.6]} 57. Kg3 {[%clk 0:00:23.7]} 57... Kf6 {[%clk 0:00:20.1]}
58. Kf4 {[%clk 0:00:24.4]} 58... Kg6 {[%clk 0:00:21.3]} 59. Kg3 {[%clk
0:00:25.7]} 59... Kh5 {[%clk 0:00:22.5]} 60. e4 {[%clk 0:00:26.8]} 60... fxe4
{[%clk 0:00:22.4]} 61. Kf4 {[%clk 0:00:26.7]} 61... Kxh4 {[%clk 0:00:23.4]} 62.
Ke5 {[%clk 0:00:27.9]} 62... e3 {[%clk 0:00:24.9]} 63. Kd6 {[%clk 0:00:26.4]}
63... e2 {[%clk 0:00:26.8]} 64. Kc7 {[%clk 0:00:27.7]} 64... e1=Q {[%clk
0:00:28.7]} 0-1

[Event "*** Titled Tuesday Blitz"]
[Site "Chess.com"]
[Date "2019.03.05"]
[Round "4"]
[White "AkibaRubi"]
[Black "pedro_gines"]
[Result "1-0"]
[WhiteElo "2581"]
[BlackElo "2416"]
[TimeControl "180+2"]
[EndTime "13:58:28 PST"]
[Termination "AkibaRubi won by resignation"]

1. d4 {[%clk 0:03:01.9]} 1... Nf6 {[%clk 0:02:56.6]} 2. c4 {[%clk 0:02:57.7]}
2... d6 {[%clk 0:02:57.5]} 3. Nf3 {[%clk 0:02:57.8]} 3... Nbd7 {[%clk
0:02:55.7]} 4. Nc3 {[%clk 0:02:57.4]} 4... e5 {[%clk 0:02:56.6]} 5. e4 {[%clk
0:02:58.5]} 5... c6 {[%clk 0:02:56.4]} 6. Be2 {[%clk 0:02:57.6]} 6... g6 {[%clk
0:02:57.1]} 7. O-O {[%clk 0:02:58.1]} 7... Bg7 {[%clk 0:02:58.3]} 8. Be3 {[%clk
0:02:53]} 8... O-O {[%clk 0:02:58]} 9. d5 {[%clk 0:02:54.2]} 9... c5 {[%clk
0:02:58.8]} 10. Nd2 {[%clk 0:02:51.7]} 10... Ne8 {[%clk 0:02:59.6]} 11. a3
{[%clk 0:02:51.9]} 11... f5 {[%clk 0:02:59.6]} 12. exf5 {[%clk 0:02:52.6]} 12...
gxf5 {[%clk 0:03:00.3]} 13. f4 {[%clk 0:02:53.7]} 13... b6 {[%clk 0:02:53]} 14.
fxe5 {[%clk 0:02:51.3]} 14... dxe5 {[%clk 0:02:53.7]} 15. b4 {[%clk 0:02:49.1]}
15... Nd6 {[%clk 0:02:53.6]} 16. Na4 {[%clk 0:02:46.7]} 16... f4 {[%clk
0:02:40.7]} 17. Bf2 {[%clk 0:02:46.3]} 17... e4 {[%clk 0:02:40.9]} 18. bxc5
{[%clk 0:02:47]} 18... bxc5 {[%clk 0:02:40.7]} 19. Nxc5 {[%clk 0:02:22]} 19...
e3 {[%clk 0:02:38.5]} 20. Ne6 {[%clk 0:02:22.8]} 20... exf2+ {[%clk 0:02:39.5]}
21. Kh1 {[%clk 0:02:17.6]} 21... Qh4 {[%clk 0:02:31.6]} 22. Nf3 {[%clk
0:02:14.3]} 22... Qh6 {[%clk 0:02:31.8]} 23. Nxf8 {[%clk 0:02:02.2]} 23... Ne4
{[%clk 0:02:20.9]} 24. h3 {[%clk 0:01:40.2]} 24... Ng3+ {[%clk 0:02:16.4]} 25.
Kh2 {[%clk 0:01:41.3]} 25... Nxf1+ {[%clk 0:02:17.4]} 26. Bxf1 {[%clk
0:01:43.2]} 26... Nxf8 {[%clk 0:01:23.7]} 27. Rc1 {[%clk 0:01:38.1]} 27... Qg6
{[%clk 0:01:21.5]} 28. c5 {[%clk 0:01:34.7]} 28... Bf5 {[%clk 0:01:09.7]} 29. d6
{[%clk 0:01:30.9]} 29... Ne6 {[%clk 0:01:09.1]} 30. c6 {[%clk 0:01:28]} 30...
Nd4 {[%clk 0:00:23]} 31. Nxd4 {[%clk 0:01:20.1]} 31... Qg3+ {[%clk 0:00:24.5]}
32. Kh1 {[%clk 0:01:21.3]} 32... Bxh3 {[%clk 0:00:25.5]} 33. Qb3+ {[%clk
0:01:22.2]} 33... Qxb3 {[%clk 0:00:21.6]} 34. Nxb3 {[%clk 0:01:24.1]} 34... Bf5
{[%clk 0:00:20.4]} 35. c7 {[%clk 0:01:15]} 35... Be5 {[%clk 0:00:19.7]} 36. Rc5
{[%clk 0:00:53.5]} 36... Bxd6 {[%clk 0:00:20.6]} 37. Rxf5 {[%clk 0:00:53.5]}
37... Bxc7 {[%clk 0:00:22]} 38. Rc5 {[%clk 0:00:39.6]} 38... Bb6 {[%clk
0:00:17.7]} 39. Rg5+ {[%clk 0:00:40.5]} 39... Kh8 {[%clk 0:00:14.3]} 40. Kh2
{[%clk 0:00:40]} 40... Rd8 {[%clk 0:00:15.5]} 41. g3 {[%clk 0:00:34.7]} 41...
fxg3+ {[%clk 0:00:15.6]} 42. Kxg3 {[%clk 0:00:34.1]} 42... Rd1 {[%clk
0:00:14.9]} 43. Kg2 {[%clk 0:00:30.1]} 43... h6 {[%clk 0:00:14.6]} 44. Rg3
{[%clk 0:00:29.1]} 44... Kh7 {[%clk 0:00:09.5]} 45. Rd3 {[%clk 0:00:28.6]} 45...
Rb1 {[%clk 0:00:08.6]} 46. Nd4 {[%clk 0:00:27.7]} 46... Kg6 {[%clk 0:00:09.3]}
47. Kxf2 {[%clk 0:00:26.2]} 47... Kf6 {[%clk 0:00:09.1]} 48. Kg2 {[%clk
0:00:25]} 48... Rb2+ {[%clk 0:00:09.1]} 49. Kf3 {[%clk 0:00:24.5]} 49... Ra2
{[%clk 0:00:10.3]} 50. Nb5 {[%clk 0:00:21.2]} 50... Bc5 {[%clk 0:00:10.4]} 51.
Rc3 {[%clk 0:00:21.1]} 51... Be7 {[%clk 0:00:06.8]} 52. Bd3 {[%clk 0:00:21.5]}
52... a6 {[%clk 0:00:07.2]} 53. Rc6+ {[%clk 0:00:22.6]} 53... Ke5 {[%clk
0:00:08.1]} 54. Rxa6 {[%clk 0:00:23.6]} 54... h5 {[%clk 0:00:09.3]} 55. Ra7
{[%clk 0:00:24]} 55... Bc5 {[%clk 0:00:08.5]} 56. Rc7 {[%clk 0:00:25.1]} 56...
Bb6 {[%clk 0:00:08.6]} 57. Re7+ {[%clk 0:00:25.5]} 57... Kf6 {[%clk 0:00:09.1]}
58. Rh7 {[%clk 0:00:26.3]} 58... Kg5 {[%clk 0:00:09.9]} 59. Rg7+ {[%clk
0:00:27.4]} 59... Kf6 {[%clk 0:00:10.8]} 60. Rg6+ {[%clk 0:00:28.4]} 60... Ke5
{[%clk 0:00:12.1]} 61. Rxb6 {[%clk 0:00:30.3]} 61... h4 {[%clk 0:00:12]} 62. Rh6
{[%clk 0:00:31.1]} 62... Kd5 {[%clk 0:00:07.5]} 63. Rh5+ {[%clk 0:00:31.4]} 1-0

[Event "*** Titled Tuesday Blitz"]
[Site "Chess.com"]
[Date "2019.03.05"]
[Round "4"]
[White "Jabberwockiez"]
[Black "NemtsevIgor"]
[Result "0-1"]
[WhiteElo "2215"]
[BlackElo "2334"]
[TimeControl "180+2"]
[EndTime "13:58:56 PST"]
[Termination "NemtsevIgor won by resignation"]

1. e4 {[%clk 0:03:01.9]} 1... c6 {[%clk 0:03:00.4]} 2. d4 {[%clk 0:03:02.4]}
2... d5 {[%clk 0:03:01.5]} 3. e5 {[%clk 0:03:02.8]} 3... c5 {[%clk 0:03:02.6]}
4. Be3 {[%clk 0:03:00.9]} 4... Nc6 {[%clk 0:03:02.5]} 5. Bb5 {[%clk 0:02:58]}
5... cxd4 {[%clk 0:03:03]} 6. Bxd4 {[%clk 0:02:57.6]} 6... Qa5+ {[%clk
0:02:55.7]} 7. Nc3 {[%clk 0:02:58.1]} 7... e6 {[%clk 0:02:54.9]} 8. a3 {[%clk
0:02:51.1]} 8... Bd7 {[%clk 0:02:55.2]} 9. Bxc6 {[%clk 0:02:46.6]} 9... bxc6
{[%clk 0:02:45.7]} 10. b4 {[%clk 0:02:47.3]} 10... Qc7 {[%clk 0:02:46.1]} 11.
Na4 {[%clk 0:02:42.3]} 11... Ne7 {[%clk 0:02:39.2]} 12. g4 {[%clk 0:02:28.7]}
12... h5 {[%clk 0:02:39.3]} 13. gxh5 {[%clk 0:02:00.6]} 13... Nf5 {[%clk
0:02:39.6]} 14. Nf3 {[%clk 0:01:47.1]} 14... Rxh5 {[%clk 0:02:34]} 15. Nc5
{[%clk 0:01:38]} 15... g6 {[%clk 0:02:22.7]} 16. c3 {[%clk 0:01:32.2]} 16... Bh6
{[%clk 0:02:09.9]} 17. Qd3 {[%clk 0:01:29.7]} 17... Rh3 {[%clk 0:02:01.4]} 18.
Qe2 {[%clk 0:01:29.7]} 18... Bf4 {[%clk 0:01:57.3]} 19. Kf1 {[%clk 0:01:23]}
19... Ke7 {[%clk 0:01:50.3]} 20. Nd3 {[%clk 0:01:23.5]} 20... Bh6 {[%clk
0:01:45.7]} 21. Bc5+ {[%clk 0:01:16.6]} 21... Ke8 {[%clk 0:01:46.6]} 22. Nd4
{[%clk 0:01:15.4]} 22... a5 {[%clk 0:01:23.3]} 23. Nxf5 {[%clk 0:01:11.1]} 23...
gxf5 {[%clk 0:01:18.8]} 24. Kg2 {[%clk 0:01:07.4]} 24... Rh4 {[%clk 0:01:14.5]}
25. Rag1 {[%clk 0:01:03.3]} 25... Bf8 {[%clk 0:01:14.9]} 26. Kf1 {[%clk
0:00:59.5]} 26... Bxc5 {[%clk 0:01:13.3]} 27. Nxc5 {[%clk 0:01:01.4]} 27... Ke7
{[%clk 0:01:14.6]} 28. Qe3 {[%clk 0:00:59.4]} 28... Rah8 {[%clk 0:01:10.7]} 29.
Qg5+ {[%clk 0:00:56.5]} 29... Ke8 {[%clk 0:01:11.8]} 30. Qf6 {[%clk 0:00:51.3]}
30... axb4 {[%clk 0:00:57.2]} 31. cxb4 {[%clk 0:00:50.8]} 31... Qd8 {[%clk
0:00:45.2]} 32. Rg7 {[%clk 0:00:31.1]} 32... Qxf6 {[%clk 0:00:40.2]} 33. exf6
{[%clk 0:00:33]} 33... Bc8 {[%clk 0:00:33.5]} 34. Rhg1 {[%clk 0:00:33.5]} 34...
Rf8 {[%clk 0:00:34.6]} 35. Rg8 {[%clk 0:00:30.3]} 35... Rxh2 {[%clk 0:00:31.2]}
36. a4 {[%clk 0:00:26.7]} 36... Rh4 {[%clk 0:00:31]} 37. b5 {[%clk 0:00:18.3]}
37... cxb5 {[%clk 0:00:31.9]} 38. axb5 {[%clk 0:00:20.2]} 38... Rb4 {[%clk
0:00:33.3]} 39. Rxf8+ {[%clk 0:00:19.3]} 39... Kxf8 {[%clk 0:00:33.8]} 40. Rh1
{[%clk 0:00:20.7]} 40... Rb1+ {[%clk 0:00:21.9]} 41. Kg2 {[%clk 0:00:21.7]}
41... Rxh1 {[%clk 0:00:23.8]} 42. Kxh1 {[%clk 0:00:23.6]} 42... Kg8 {[%clk
0:00:25.4]} 43. b6 {[%clk 0:00:24.6]} 43... Kh7 {[%clk 0:00:27.3]} 44. b7 {[%clk
0:00:25.7]} 44... Bxb7 {[%clk 0:00:28.8]} 45. Nxb7 {[%clk 0:00:27.6]} 45... Kg6
{[%clk 0:00:30.5]} 46. Kg2 {[%clk 0:00:26.5]} 46... Kxf6 {[%clk 0:00:31.8]} 47.
Kf3 {[%clk 0:00:27.4]} 47... e5 {[%clk 0:00:32.2]} 48. Nc5 {[%clk 0:00:26.9]}
48... d4 {[%clk 0:00:30.5]} 49. Ke2 {[%clk 0:00:27.6]} 49... e4 {[%clk
0:00:29.1]} 50. Nb3 {[%clk 0:00:27.3]} 50... Ke5 {[%clk 0:00:29.9]} 51. Kd2
{[%clk 0:00:21.8]} 51... f4 {[%clk 0:00:30.1]} 52. Ke2 {[%clk 0:00:21.3]} 52...
f3+ {[%clk 0:00:31.3]} 53. Kd2 {[%clk 0:00:20.9]} 53... f5 {[%clk 0:00:32.5]}
54. Nc5 {[%clk 0:00:21.1]} 54... f4 {[%clk 0:00:30.9]} 55. Nd7+ {[%clk
0:00:22.3]} 55... Kd6 {[%clk 0:00:30.9]} 56. Nf6 {[%clk 0:00:23.2]} 56... e3+
{[%clk 0:00:32.3]} 57. fxe3 {[%clk 0:00:24.7]} 57... fxe3+ {[%clk 0:00:31.8]}
58. Kd3 {[%clk 0:00:24.3]} 58... f2 {[%clk 0:00:33.1]} 59. Ke2 {[%clk
0:00:25.6]} 59... d3+ {[%clk 0:00:30.1]} 60. Kf1 {[%clk 0:00:26]} 60... d2
{[%clk 0:00:28.4]} 61. Ne4+ {[%clk 0:00:27.1]} 61... Ke5 {[%clk 0:00:29.6]} 62.
Nc3 {[%clk 0:00:27.9]} 62... Kd4 {[%clk 0:00:29.1]} 63. Nd1 {[%clk 0:00:28.4]}
63... Kd3 {[%clk 0:00:28.6]} 64. Nb2+ {[%clk 0:00:17.2]} 64... Kc2 {[%clk
0:00:28.5]} 65. Nd1 {[%clk 0:00:09]} 65... Kxd1 {[%clk 0:00:28.6]} 0-1